fUSD/lending_fUSD_20240213
["ID","MTS","AMOUNT","RATE_DAILY","PERIOD"]
[313948655,1707846632052,-727.26,0.00023943,2]
[313948656,1707846632061,-309.27,0.00023943,2]
[313948657,1707846632071,-4661.53416558,0.00023951,2]
[313948658,1707846632081,-500.0,0.00023964,2]
[313948659,1707846632090,-431.43,0.00023989,2]
[313948660,1707846632099,-1000.0,0.00024,2]
[313948661,1707846632108,-518.01679133,0.00024025,2]
[313948662,1707846632119,-732.48,0.00024026,2]
[313948663,1707846632128,-431.43,0.00024054,2]
[313948664,1707846632137,-431.43,0.0002412,2]
[313948665,1707846632147,-431.43,0.00024185,2]
[313948666,1707846632156,-431.43,0.0002425,2]
[313948667,1707846632166,-431.43,0.00024316,2]
[313948668,1707846632175,-431.43,0.00024381,2]
[313948669,1707846632184,-431.43,0.00024447,2]
[313948670,1707846632194,-787.66706975,0.00024512,2]
[313948671,1707846632203,-431.43,0.00024512,2]
[313948672,1707846632212,-161.66,0.00024575,2]
[313948673,1707846632222,-431.43,0.00024578,2]
[313948674,1707846632231,-431.43,0.00024643,2]
[313948675,1707846632240,-431.43,0.00024708,2]
[313948676,1707846632249,-431.43,0.00024774,2]
[313948677,1707846632259,-17252.03591094,0.0002479,2]
[313948678,1707846632269,-2319.62034512,0.000248,2]
[313948679,1707846632278,-2274.47205785,0.00024805,2]
[313948680,1707846632287,-381.68330951,0.00024805,2]
[313948681,1707846632296,-381.68330948,0.0002482,2]
[313948682,1707846632306,-381.68330948,0.00024835,2]
[313948683,1707846632315,-431.43,0.00024839,2]
[313948684,1707846632325,-381.68330948,0.0002485,2]
[313948685,1707846632335,-196.52849667,0.00024865,2]
[313948686,1707846632344,-246.23794881,0.00024865,2]
[313948687,1707846632354,-191.73170434,0.00024865,2]
[313948688,1707846632363,-473.54978766,0.00024865,2]
[313948689,1707846632373,-359.04499878,0.00024865,2]
[313948690,1707846632383,-234.87008297,0.00024865,2]
[313948691,1707846632392,-155.0,0.00024865,2]
[313948692,1707846632402,-286.17157154,0.00024865,2]
[313948693,1707846632411,-182.27763606,0.00024865,2]
[313948694,1707846632420,-388.60822747,0.00024865,2]
[313948695,1707846632430,-17879.27613352,0.00024865,2]
[313948696,1707846632439,-381.68330948,0.00024865,2]
[313948697,1707846632448,-775.39441154,0.00024866,2]
[313948698,1707846632458,-232753.17346184,0.00024866,2]
[313948699,1707846632474,-3704.26931489,0.00024866,2]
[313948700,1707846632486,-2650.02266968,0.00024866,2]
[313948701,1707846632498,-439.62247958,0.00024866,2]
[313948702,1707846632509,-1419.47488724,0.00024866,2]
[313948703,1707846632521,-5037.50612945,0.00024866,2]
[313948704,1707846632532,-2072.3835345,0.00024866,2]
[313948705,1707846632549,-231.59691718,0.00023592,2]
[313948706,1707846632558,-66782.34398809,0.00024866,2]
[313948707,1707846632570,-375.48056187,0.00024866,2]
[313948708,1707846632582,-404.3544,0.00024866,2]
[313948709,1707846632593,-658.46,0.00024866,2]
[313948710,1707846632606,-388.42893379,0.00024866,2]
[313948737,1707846638115,-231.59691718,0.00023784,2]
[313948738,1707846638126,-1770.16510387,0.00024866,2]
[313948739,1707846638139,-1644.76681697,0.00024866,2]
[313948740,1707846638152,-1002.12330817,0.00024866,2]
[313948741,1707846638167,-1181.46000031,0.00024866,2]
[313948742,1707846638193,-24441.9175,0.00024866,2]
[313948743,1707846638226,-715895.46351438,0.00024866,2]
[313948744,1707846638236,-127328.00333185,0.00024867,2]
[313948745,1707846638245,-431.43,0.00024905,2]
[313948746,1707846638255,-1121.64,0.00024952,2]
[313948747,1707846638265,-337.31932187,0.00024954,2]
[313948748,1707846638274,-337.31932187,0.00024957,2]
[313948749,1707846638285,-495537.81904403,0.00024965,2]
[313948750,1707846638295,-23900.0,0.00024967,2]
[313948752,1707846638304,-431.43,0.0002497,2]
[313948754,1707846638314,-324.67834053,0.00025,2]
[313948756,1707846638324,-1000.0,0.00025,2]
[313948758,1707846638333,-8098.16,0.00025,2]
[313948761,1707846638343,-946.49306219,0.00025,2]
[313948763,1707846638353,-938.54769729,0.00025,2]
[313948765,1707846638363,-1592.37015014,0.00025,2]
[313948768,1707846638374,-659.47170738,0.00025,2]
[313948769,1707846638384,-305.21545109,0.00025,2]
[313948772,1707846638394,-168.32868177,0.00025,2]
[313948774,1707846638403,-350.0,0.00025,3]
[313948775,1707846638413,-431.43,0.00025036,2]
[313948779,1707846638423,-431.43,0.00025101,2]
[313948782,1707846638433,-250.0,0.00025111,2]
[313948785,1707846638443,-282.59583614,0.00025334,10]
[313948788,1707846638452,-206.0,0.00025471,2]
[313948791,1707846638461,-600.0,0.00025542,2]
[313948794,1707846638471,-500.0,0.00025562,2]
[313948798,1707846638481,-651.9,0.00025593,4]
[313948800,1707846638491,-2000.0,0.00025625,2]
[313948802,1707846638501,-250.0,0.00025633,2]
[313948804,1707846638510,-150.99,0.00025655,2]
[313948806,1707846638520,-161.66,0.00025746,2]
[313948808,1707846638531,-388.60822744,0.00025816,2]
[313948809,1707846638541,-1000.0,0.00025868,2]
[313948811,1707846638551,-452.16,0.00025892,2]
[313948812,1707846638561,-400.0,0.00025893,2]
[313948813,1707846638572,-1000.0,0.00026,2]
[313948814,1707846638583,-542.27160509,0.00026181,2]
[313948815,1707846638593,-732.48,0.0002629,2]
[313948816,1707846638602,-17879.27613351,0.00026323,2]
[313948817,1707846638612,-1121.64,0.00026596,2]
[313948818,1707846638623,-388.60822744,0.00026766,2]
[313948819,1707846638633,-165.45540104,0.00026847,2]
[313948820,1707846638643,-4923.93653645,0.00026859,2]
[313948821,1707846638652,-2274.47205777,0.0002686,2]
[313948822,1707846638662,-150.0,0.0002688,2]
[313948823,1707846638671,-156.16864408,0.0002688,2]
[313948824,1707846638681,-161.66,0.00026916,2]
[313948825,1707846638690,-49620.66026776,0.00026924,2]
[313948826,1707846638703,-10020.06266732,0.00026924,2]
[313948827,1707846638718,-9777.768,0.00026924,2]
[313948828,1707846638739,-515.955,0.00026924,2]
[313948836,1707846640553,-21599.9241244,0.00026924,2]
[313948837,1707846641490,-17973.24999998,0.00026924,2]
[313948838,1707846641503,-17820.38327231,0.00026924,2]
[313948839,1707846641513,-1344.5018717,0.00026959,2]
[313948840,1707846641523,-4093.83,0.00026978,2]
[313948841,1707846641532,-1000.0,0.00027,2]
[313948843,1707846641542,-250.0,0.00027,2]
[313948845,1707846641553,-150.0,0.00027,2]
[313948846,1707846641564,-400.0,0.00027,3]
[313948847,1707846641821,-364.32650536,0.00027062,2]
[313948848,1707846641831,-725.22904719,0.00027084,2]
[313948849,1707846641840,-2874.85928017,0.00027141,2]
[313948850,1707846641849,-5072.01034995,0.00027184,2]
[313948851,1707846641862,-274.7,0.00027184,2]
[313948852,1707846641877,-456.5084534,0.00027184,2]
[313948860,1707846642882,-231.59691718,0.00023977,2]
[313948862,1707846642892,-71.94308282,0.00024866,2]
[313948865,1707846642906,-642.85691718,0.00024866,2]
[313948867,1707846642917,-206.27486606,0.00026923,2]
[313948869,1707846642926,-4160.28235489,0.00027184,2]
[313948871,1707846642940,-12958.71330861,0.00027184,2]
[313948874,1707846642968,-302.0,0.00027184,2]
[313948875,1707846643003,-500.54934269,0.00027184,2]
[313948876,1707846643021,-1570.47626672,0.00027184,2]
[313948877,1707846643033,-15028.01433865,0.00027184,2]
[313948878,1707846643060,-346.74620445,0.00027184,2]
[313948879,1707846643072,-1339.26328638,0.00027184,2]
[313948880,1707846643131,-1192.86222309,0.00027184,2]
[313948881,1707846643155,-10947.55269178,0.00027184,2]
[313948882,1707846643165,-1816.12904558,0.00027241,2]
[313948883,1707846643175,-489.97894041,0.00027274,2]
[313948884,1707846643184,-1344.5018717,0.00027351,2]
[313948885,1707846643194,-155.0,0.00027397,2]
[313948886,1707846643206,-1140.99,0.00027397,10]
[313948887,1707846643216,-2263.77,0.00027397,2]
[313948888,1707846643226,-1140.99,0.00027397,10]
[313948889,1707846643241,-760.66,0.00027397,10]
[313948890,1707846643252,-633.88,0.00027397,10]
[313948891,1707846643263,-150.0,0.00027428,2]
[313948892,1707846643274,-369.69340997,0.0002744,2]
[313948893,1707846643289,-88.92101056,0.0002744,2]
[313948894,1707846643301,-158.36561926,0.00027441,2]
[313948895,1707846643312,-1147.15292267,0.00027474,2]
[313948896,1707846643321,-67.67628344,0.00027474,2]
[313948912,1707846645905,-307.609591,0.00024864,2]
[313948913,1707846646127,-1294.46289533,0.00024864,2]
[313948914,1707846646137,-424.7185787,0.00026923,2]
[313948915,1707846646146,-170.41702033,0.00026923,2]
[313948916,1707846646155,-282.00448011,0.00027474,2]
[313948917,1707846646165,-418.01197581,0.00027474,2]
[313948918,1707846646175,-198.60905178,0.00027475,2]
[313948919,1707846646185,-190.0507,0.00027476,2]
[313948920,1707846646194,-1547.8068,0.00027477,2]
[313948921,1707846646204,-174.45427474,0.00027478,2]
[313948922,1707846646213,-165.12,0.00027513,2]
[313948923,1707846646223,-150.0,0.00027548,2]
[313948924,1707846646232,-2263.77,0.00027556,2]
[313948925,1707846646242,-1069.37128004,0.00027574,2]
[313948926,1707846646251,-375.09756048,0.00027574,2]
[313948927,1707846646261,-156.2884166,0.00027575,2]
[313948928,1707846646271,-2068.20672979,0.00027576,2]
[313948929,1707846646283,-88.99747021,0.00027576,2]
[313948931,1707846646293,-500.0,0.00027576,2]
[313948932,1707846646302,-997.99138175,0.00027576,2]
[313948934,1707846646314,-3280.11114804,0.00027576,2]
[313948935,1707846646338,-1069.51230699,0.00027576,2]
[313948936,1707846670035,71852.29359902,0.00023,2]
[313948937,1707846670059,20000.0,0.00023,2]
[313948938,1707846670080,10000.0,0.00023,2]
[313948939,1707846670105,3191537.7694425,0.00023,2]
[313948940,1707846670131,32000.0,0.00023,2]
[313948941,1707846670156,937.0,0.00023,2]
[313948942,1707846681129,345.77870134,0.00022999,10]
[313948943,1707846692132,154.29,0.0001,2]
[313948944,1707846694222,150.0,0.000225,2]
[313948945,1707846694241,150.0,0.000225,2]
[313948946,1707846694261,150.0,0.000225,2]
[313948947,1707846694282,116.8494334,0.000225,2]
[313948948,1707846694876,33.1505666,0.0002,2]
[313948949,1707846694899,150.0,0.0002,2]
[313948950,1707846694922,150.0,0.0002,2]
[313948951,1707846694943,150.0,0.0002,2]
[313948952,1707846694963,97.81683101,0.0002,2]
[313948953,1707846703566,601.69812491,0.000238,8]
[313948955,1707846711576,634.02063745,0.00017249,2]
[313948956,1707846712590,1689.65142472,0.00021,4]
[313948957,1707846719132,155.0,0.000228,2]
[313948960,1707846775648,150.0,0.00022899,2]
[313948961,1707846775670,150.0,0.00022899,2]
[313948962,1707846775695,333.78929383,0.00022899,2]
[313948965,1707846784027,4733.248644,0.000225,2]
[313948966,1707846784388,5566.3453456,0.000225,2]
[313948967,1707846784416,22370.62909032,0.000225,2]
[313948968,1707846790590,300.0,0.00017246,2]
[313948970,1707846849282,150.0,0.0002,2]
[313948971,1707846849303,150.0,0.0002,2]
[313948972,1707846849323,150.0,0.0002,2]
[313948973,1707846849343,150.0,0.0002,2]
[313948974,1707846849363,150.0,0.0002,2]
[313948975,1707846849383,150.0,0.0002,2]
[313948976,1707846849403,210.87739662,0.0002,2]
[313948977,1707846849423,3236.78666711,0.0002,2]
[313948978,1707846852459,1760.38528399,0.00012,30]
[313948980,1707846868448,15132.64702473,0.00025,30]
[313948981,1707846873098,1050.0,0.00017246,2]
[313948982,1707846880107,23042.58424257,0.00022184,2]
[313948983,1707846880127,857.41575743,0.00022184,2]
[313948985,1707846884816,19142.58424257,0.00022767,2]
[313948986,1707846884838,20000.0,0.00022767,2]
[313948987,1707846884858,5000.0,0.00022767,2]
[313948988,1707846905979,172.95,0.00022074,2]
[313948989,1707846912210,750.81,0.00020108,2]
[313948990,1707846912443,750.81,0.00022372,2]
[313948994,1707846975990,-159.72247724,0.00022641,2]
[313948995,1707846976014,-250.1848972,0.00022642,2]
[313948996,1707846976036,-640.70049248,0.00022642,2]
[313948997,1707846976059,-2332.65275521,0.00022642,2]
[313948998,1707846976082,-6601.48706,0.00022643,2]
[313948999,1707846976104,-290.58241428,0.00022756,2]
[313949000,1707846976126,-500.0,0.00022756,2]
[313949001,1707846976147,-155.0,0.00022757,2]
[313949002,1707846976169,-491.28469563,0.00022757,2]
[313949003,1707846976191,-155.0,0.00022758,2]
[313949004,1707846976213,-155.0,0.00022758,2]
[313949005,1707846976235,-155.0,0.00022758,2]
[313949006,1707846976257,-363.67553212,0.00022759,2]
[313949007,1707846976278,-155.0,0.00022759,2]
[313949008,1707846976300,-1957.77976009,0.00022759,2]
[313949009,1707846976322,-1047.16156624,0.0002276,2]
[313949010,1707846976342,-234.55403576,0.0002276,2]
[313949011,1707846976363,-420.44975688,0.00022761,2]
[313949012,1707846976385,-1051.3255843,0.00022761,2]
[313949013,1707846976407,-155.0,0.00022761,2]
[313949014,1707846976428,-155.0,0.00022762,2]
[313949015,1707846976449,-203.82301951,0.00022762,2]
[313949016,1707846976470,-2029.03801024,0.00022763,2]
[313949017,1707846976491,-4867.89255788,0.00022764,2]
[313949018,1707846976513,-75472.68538494,0.00022766,2]
[313949019,1707847037157,414.07,0.00021959,2]
[313949020,1707847045707,-414.36901055,0.00022649,2]
[313949021,1707847045950,-166.71,0.0002265,2]
[313949022,1707847045972,-633.78929382,0.00022667,2]
[313949023,1707847045993,-155.443291,0.00022667,2]
[313949024,1707847046014,-273.38731206,0.00022667,2]
[313949025,1707847046034,-273.38731205,0.00022676,2]
[313949026,1707847046054,-155.44329097,0.00022725,2]
[313949027,1707847046074,-150.0,0.00022763,2]
[313949028,1707847046094,-158.46068763,0.00022764,2]
[313949029,1707847046113,-371.90803585,0.00022764,2]
[313949030,1707847046133,-249.43976583,0.00022764,2]
[313949031,1707847046153,-156.28617386,0.00022764,2]
[313949032,1707847046173,-376.80850463,0.00022764,2]
[313949033,1707847046194,-203.02461788,0.00022764,2]
[313949034,1707847046217,-410.75173279,0.00022765,2]
[313949035,1707847046238,-2243.01917846,0.00022765,2]
[313949036,1707847046258,-155.40157224,0.00022765,2]
[313949037,1707847046279,-157.00794927,0.00022765,2]
[313949038,1707847046299,-500.0,0.00022765,2]
[313949039,1707847046319,-203.80364285,0.00022765,2]
[313949040,1707847046339,-234.03321673,0.00022765,2]
[313949041,1707847046359,-264.00734425,0.00022765,2]
[313949042,1707847046378,-216.29628175,0.00022765,2]
[313949043,1707847046398,-156.597576,0.00022765,2]
[313949044,1707847046417,-298.8471784,0.00022765,2]
[313949045,1707847046437,-2029.81083192,0.00022765,2]
[313949046,1707847046458,-188.87616327,0.00022765,2]
[313949047,1707847046480,-862.28203719,0.00022765,2]
[313949048,1707847046499,-200.94464227,0.00022765,2]
[313949049,1707847046520,-155.58751516,0.00022765,2]
[313949050,1707847046542,-37984.27584132,0.00022766,2]
[313949051,1707847067332,2000.0,0.00022337,2]
[313949052,1707847095157,168.08,0.00022261,2]
[313949053,1707847188406,1075.87,0.0002187,2]
[313949054,1707847198780,245.23087109,0.00020555,2]
[313949055,1707847213068,500.0,0.00021918,2]
[313949056,1707847220804,480.0,0.000218,2]
[313949058,1707847275090,187.57,0.00021819,2]
[313949059,1707847278963,250.0,0.00021918,2]
[313949060,1707847305395,250.0,0.00021819,2]
[313949061,1707847347314,1000.0,0.00021846,2]
[313949062,1707847347334,2000.0,0.00021846,2]
[313949063,1707847347357,20900.0,0.00021846,2]
[313949064,1707847355063,686.93,0.00019942,2]
[313949065,1707847355267,313.07,0.00022206,2]
[313949066,1707847355291,373.86,0.00022206,2]
[313949067,1707847370705,173.94,0.00017479,2]
[313949068,1707847383113,213.28,0.00021854,2]
[313949069,1707847416264,155.29,0.00022023,2]
[313949074,1707847439026,627.941124,0.00022318,2]
[313949078,1707847516328,2000.0,0.00021798,2]
[313949079,1707847525490,1111.04,0.00021972,2]
[313949080,1707847577925,150.0,0.00021998,2]
[313949084,1707847590702,-196.41065407,0.00037877,30]
[313949085,1707847590727,-500.0,0.00037877,120]
[313949086,1707847590749,-193.36606417,0.00037877,120]
[313949087,1707847590772,-150.0,0.00037877,30]
[313949088,1707847590794,-166.18210955,0.00037877,60]
[313949089,1707847590817,-1774.545963,0.00037877,30]
[313949090,1707847590839,-238.079729,0.00037877,30]
[313949091,1707847590861,-1987.913013,0.00037877,30]
[313949092,1707847590883,-200.0,0.00037877,30]
[313949093,1707847590906,-200.0,0.00037877,30]
[313949094,1707847590929,-200.0,0.00037877,30]
[313949095,1707847590953,-200.0,0.00037877,30]
[313949096,1707847593752,150.0,0.00021998,2]
[313949103,1707847626311,207.03,0.00021761,2]
[313949119,1707847640803,6601.48706,0.00022308,2]
[313949120,1707847648502,600.0,0.000222,8]
[313949121,1707847650607,1200.0,0.000223,8]
[313949122,1707847652689,1800.0,0.000224,8]
[313949123,1707847655092,2400.0,0.000225,8]
[313949124,1707847656957,3000.0,0.000226,8]
[313949125,1707847659125,600.0,0.000227,8]
[313949126,1707847661242,600.0,0.000228,8]
[313949127,1707847663347,600.0,0.000229,8]
[313949137,1707847728014,250.0,0.00021918,2]
[313949143,1707847736982,616.0,0.00021748,2]
[313949145,1707847754095,933.82,0.00021758,2]
[313949152,1707847793519,6984.111816,0.00021846,2]
[313949153,1707847793542,16915.888184,0.00021846,2]
[313949156,1707847823485,250.0,0.00021779,2]
[313949157,1707847825304,172.95,0.00021782,2]
[313949172,1707847832045,-155.0,0.00022413,2]
[313949173,1707847832055,-358.62078167,0.00022414,2]
[313949174,1707847832065,-221.17327819,0.00022414,2]
[313949175,1707847832074,-19102.0096647,0.00022416,2]
[313949176,1707847832084,-4651.87061363,0.00022417,2]
[313949177,1707847832096,-4021.83928514,0.0002242,2]
[313949178,1707847832108,-12316.5965418,0.0002242,2]
[313949179,1707847832119,-206.0,0.00022471,2]
[313949180,1707847832129,-2596.98495599,0.00022544,2]
[313949181,1707847832139,-150.0,0.00022546,2]
[313949182,1707847832149,-150.0,0.00022546,2]
[313949183,1707847832158,-181.77547104,0.00022667,2]
[313949184,1707847832168,-196.52849666,0.00022667,2]
[313949185,1707847832178,-181.77547095,0.00022679,2]
[313949186,1707847832188,-499.99,0.00022679,2]
[313949187,1707847832197,-503.74,0.00022679,2]
[313949188,1707847832206,-150.99,0.00022679,2]
[313949189,1707847832216,-5614.69,0.00022679,2]
[313949190,1707847832225,-181.77547095,0.00022692,2]
[313949191,1707847832234,-181.77547095,0.00022704,2]
[313949192,1707847832243,-181.77547095,0.00022716,2]
[313949193,1707847832253,-181.77547095,0.00022728,2]
[313949194,1707847832263,-178.73,0.00022734,2]
[313949195,1707847832273,-181.77547095,0.00022741,2]
[313949196,1707847832283,-301.74771134,0.00022745,2]
[313949197,1707847832292,-181.77547095,0.00022753,2]
[313949199,1707847832302,-4981.22644357,0.00022763,2]
[313949201,1707847832312,-155.44329097,0.00022763,2]
[313949203,1707847832322,-273.38731205,0.00022763,2]
[313949205,1707847832332,-2232.85795144,0.00022764,2]
[313949207,1707847832341,-155.0,0.00022764,2]
[313949209,1707847832351,-500.0,0.00022764,2]
[313949211,1707847832361,-155.0,0.00022764,2]
[313949213,1707847832371,-203.82301951,0.00022764,2]
[313949214,1707847832380,-491.28469563,0.00022764,2]
[313949216,1707847832389,-155.0,0.00022764,2]
[313949218,1707847832398,-290.58241428,0.00022764,2]
[313949220,1707847832407,-363.67553212,0.00022764,2]
[313949222,1707847832416,-155.0,0.00022764,2]
[313949224,1707847832425,-2332.65275521,0.00022764,2]
[313949225,1707847832434,-155.0,0.00022764,2]
[313949226,1707847832443,-1047.16156624,0.00022764,2]
[313949227,1707847832452,-155.0,0.00022764,2]
[313949228,1707847832461,-234.55403576,0.00022764,2]
[313949229,1707847832470,-2029.03801024,0.00022764,2]
[313949230,1707847832479,-1051.3255843,0.00022764,2]
[313949231,1707847832488,-1957.77976009,0.00022764,2]
[313949232,1707847832497,-159.72247724,0.00022764,2]
[313949233,1707847832506,-420.44975688,0.00022764,2]
[313949234,1707847832515,-640.70049248,0.00022764,2]
[313949235,1707847832524,-250.1848972,0.00022764,2]
[313949236,1707847832533,-4867.89255788,0.00022764,2]
[313949237,1707847832542,-155.0,0.00022764,2]
[313949238,1707847832552,-1000.0,0.00022765,2]
[313949239,1707847832561,-1844.41703312,0.00022765,2]
[313949240,1707847832570,-447.95169275,0.00022765,2]
[313949241,1707847832579,-181.77547095,0.00022765,2]
[313949242,1707847832796,-873.06797123,0.00022767,2]
[313949243,1707847832806,-181.77547095,0.00022777,2]
[313949244,1707847832815,-4981.22644352,0.00022783,2]
[313949245,1707847832824,-181.77547095,0.0002279,2]
[313949246,1707847832833,-181.77547095,0.00022802,2]
[313949247,1707847832843,-4981.22644352,0.00022802,2]
[313949248,1707847832852,-181.77547095,0.00022814,2]
[313949249,1707847832861,-4981.22644352,0.00022822,2]
[313949250,1707847832870,-181.77547095,0.00022826,2]
[313949251,1707847832879,-155.44329097,0.00022832,2]
[313949252,1707847832889,-181.77547095,0.00022839,2]
[313949253,1707847832898,-4981.22644352,0.00022841,2]
[313949254,1707847832909,-181.77547095,0.00022851,2]
[313949255,1707847832918,-168.65966094,0.00022852,2]
[313949256,1707847832927,-1897.58358123,0.00022861,2]
[313949257,1707847832941,-3083.64286229,0.00022861,2]
[313949258,1707847832951,-35507.37269846,0.00022862,2]
[313949259,1707847832968,-1042.36206145,0.00022862,2]
[313949260,1707847832980,-799517.10457336,0.00022862,2]
[313949261,1707847832995,-8805.43992604,0.00022862,2]
[313949280,1707847840137,-217749.13734532,0.00022862,2]
[313949281,1707847840147,-181.77547095,0.00022863,2]
[313949282,1707847840156,-181.77547095,0.00022875,2]
[313949283,1707847840166,-4981.22644352,0.0002288,2]
[313949284,1707847840176,-181.77547095,0.00022888,2]
[313949285,1707847840185,-174.45427474,0.00022898,2]
[313949286,1707847840195,-957.5045456,0.00022898,2]
[313949287,1707847840205,-807.28152724,0.00022898,2]
[313949288,1707847840214,-957.50454559,0.00022899,2]
[313949289,1707847840223,-807.28152722,0.00022899,2]
[313949290,1707847840232,-181.77547095,0.000229,2]
[313949291,1707847840241,-54419.8,0.000229,2]
[313949292,1707847840250,-4674.22498426,0.000229,2]
[313949293,1707847840259,-957.50454559,0.000229,2]
[313949294,1707847840268,-807.28152722,0.000229,2]
[313949295,1707847840278,-728.65301072,0.000229,2]
[313949296,1707847840287,-1450.45809438,0.000229,2]
[313949297,1707847840296,-155.44329097,0.000229,2]
[313949298,1707847840306,-350.21746124,0.000229,2]
[313949299,1707847840314,-4981.22644352,0.000229,2]
[313949300,1707847840324,-204.53203876,0.00022935,2]
[313949301,1707847840333,-1915.87,0.00022935,2]
[313949302,1707847840342,-2397.07967291,0.00022939,2]
[313949303,1707847840351,-16858.09259618,0.00022942,2]
[313949304,1707847840360,-4545.09179447,0.00022953,2]
[313949305,1707847840369,-1267.98292771,0.00022954,2]
[313949306,1707847840379,-4819.37087142,0.00022954,2]
[313949307,1707847840388,-5171.98984422,0.00022957,2]
[313949308,1707847840398,-26270.27843924,0.00022959,2]
[313949309,1707847840407,-5194.25651506,0.0002296,2]
[313949310,1707847840417,-168.65966094,0.0002299,2]
[313949311,1707847840426,-155.47694052,0.00022995,2]
[313949312,1707847840435,-3748.15753242,0.00022996,2]
[313949313,1707847840445,-246.18989559,0.00022998,2]
[313949314,1707847840454,-157.18395696,0.00022998,2]
[313949315,1707847840463,-311.10938782,0.00022998,2]
[313949316,1707847840472,-247.77956234,0.00022998,2]
[313949317,1707847840481,-599.83213527,0.00022998,2]
[313949318,1707847840490,-155.79131538,0.00022998,2]
[313949319,1707847840499,-345.19549852,0.00022998,2]
[313949320,1707847840508,-185.43936066,0.00022998,2]
[313949321,1707847840517,-226.47050172,0.00022998,2]
[313949322,1707847840526,-3734.38236608,0.00022998,2]
[313949323,1707847840535,-155.87086239,0.00022998,2]
[313949324,1707847840544,-1729.47210602,0.00022998,2]
[313949326,1707847840553,-171.88977379,0.00022998,2]
[313949328,1707847840562,-1294.46289533,0.00022998,2]
[313949330,1707847840571,-191.73170434,0.00022998,2]
[313949332,1707847840580,-156.20024098,0.00022998,2]
[313949334,1707847840589,-155.0,0.00022998,2]
[313949336,1707847840598,-979.32742237,0.00022998,2]
[313949338,1707847840608,-505.6922628,0.00022998,2]
[313949340,1707847840617,-299778.31340496,0.00022998,2]
[313949343,1707847840626,-3642.31479563,0.00022998,2]
[313949345,1707847840635,-170.41702033,0.00022998,2]
[313949347,1707847840644,-701.022719,0.00022998,2]
[313949349,1707847840654,-220.87490175,0.00022999,2]
[313949351,1707847840663,-526.98480998,0.00022999,2]
[313949353,1707847840673,-1141.10350656,0.00022999,2]
[313949355,1707847840682,-155.19768887,0.00022999,2]
[313949357,1707847840692,-2862.08991888,0.00022999,2]
[313949359,1707847840701,-296.88912932,0.00022999,2]
[313949360,1707847840710,-156.78126199,0.00022999,2]
[313949361,1707847840719,-155.0,0.00022999,2]
[313949362,1707847840729,-156.97805113,0.00022999,2]
[313949363,1707847840738,-157.10329558,0.00022999,2]
[313949364,1707847840746,-235.73743393,0.00022999,2]
[313949365,1707847840755,-156.09398112,0.00022999,2]
[313949366,1707847840764,-282.00448011,0.00022999,2]
[313949367,1707847840773,-775.13806544,0.00022999,2]
[313949368,1707847840783,-288.7069672,0.00022999,2]
[313949369,1707847840792,-155.0,0.00022999,2]
[313949371,1707847840801,-342.9535079,0.00022999,2]
[313949373,1707847840809,-155.60256921,0.00022999,2]
[313949375,1707847840819,-197.82252058,0.00022999,2]
[313949377,1707847840828,-792.23794446,0.00022999,2]
[313949379,1707847840838,-212.83179603,0.00022999,2]
[313949381,1707847840847,-155.33093318,0.00022999,2]
[313949383,1707847840857,-300.0,0.00022999,2]
[313949385,1707847840867,-155.30061745,0.00022999,2]
[313949387,1707847840878,-500.0,0.00022999,2]
[313949389,1707847840888,-324.33049312,0.00022999,2]
[313949391,1707847840897,-256.77115061,0.00022999,2]
[313949393,1707847840906,-150.0,0.00022999,2]
[313949395,1707847840916,-150.0,0.00022999,2]
[313949397,1707847840925,-150.0,0.00022999,2]
[313949399,1707847840934,-150.0,0.00022999,2]
[313949401,1707847840944,-150.0,0.00022999,2]